[Event "Early-Titled-Tuesday-Blitz-October-24-2023"]
[Site "Chess.com"]
[Date "2023.10.24"]
[Round "1"]
[White "Cheer_Down"]
[Black "c63_amg"]
[Result "0-1"]
[WhiteElo "2442"]
[BlackElo "2810"]
[TimeControl "180+1"]
[EndTime "8:08:31 PDT"]
[Termination "c63_amg won by resignation"]

1. e4 {[%clk 0:02:37.6]} 1... c5 {[%clk 0:02:54.5]} 2. Nf3 {[%clk 0:02:35.6]}
2... d6 {[%clk 0:02:55.1]} 3. Bb5+ {[%clk 0:02:35]} 3... Nd7 {[%clk 0:02:54.5]}
4. d4 {[%clk 0:02:33.6]} 4... cxd4 {[%clk 0:02:54.4]} 5. Nxd4 {[%clk 0:02:34.5]}
5... Nf6 {[%clk 0:02:53.8]} 6. O-O {[%clk 0:02:32.4]} 6... a6 {[%clk 0:02:53.1]}
7. Ba4 {[%clk 0:02:21.5]} 7... g6 {[%clk 0:02:48.1]} 8. Re1 {[%clk 0:02:19.8]}
8... Bg7 {[%clk 0:02:48.3]} 9. c4 {[%clk 0:02:19.5]} 9... O-O {[%clk 0:02:48.7]}
10. Nc3 {[%clk 0:02:19.4]} 10... Nb6 {[%clk 0:02:38.8]} 11. Bb3 {[%clk
0:02:17.6]} 11... Bd7 {[%clk 0:02:37.9]} 12. Nd5 {[%clk 0:02:08]} 12... Rc8
{[%clk 0:02:24.7]} 13. Qd3 {[%clk 0:02:00]} 13... Ng4 {[%clk 0:02:10.2]} 14. Nf3
{[%clk 0:01:42]} 14... Re8 {[%clk 0:01:48.1]} 15. h3 {[%clk 0:01:25.6]} 15...
Nxd5 {[%clk 0:01:48.1]} 16. exd5 {[%clk 0:01:18.9]} 16... Bf5 {[%clk 0:01:35.9]}
17. Qe2 {[%clk 0:01:14]} 17... Nf6 {[%clk 0:01:28.8]} 18. Nd4 {[%clk 0:01:09.2]}
18... Bd7 {[%clk 0:01:29.3]} 19. Be3 {[%clk 0:01:08.4]} 19... Ne4 {[%clk
0:01:27.3]} 20. Rad1 {[%clk 0:00:53.6]} 20... Nc5 {[%clk 0:01:12.2]} 21. Bg5
{[%clk 0:00:51.5]} 21... Qb6 {[%clk 0:01:05.7]} 22. Be3 {[%clk 0:00:49.4]} 22...
Nxb3 {[%clk 0:00:58.2]} 23. axb3 {[%clk 0:00:46.5]} 23... Qb4 {[%clk 0:00:51.1]}
24. Bd2 {[%clk 0:00:43.4]} 24... Qc5 {[%clk 0:00:49.5]} 25. Be3 {[%clk
0:00:42.4]} 25... Qb4 {[%clk 0:00:48.5]} 26. Bd2 {[%clk 0:00:42.6]} 26... Qb6
{[%clk 0:00:48.7]} 27. Be3 {[%clk 0:00:42.6]} 27... Qc7 {[%clk 0:00:49.4]} 28.
Qd2 {[%clk 0:00:34.7]} 28... b5 {[%clk 0:00:46.8]} 29. Rc1 {[%clk 0:00:35]}
29... Qb7 {[%clk 0:00:46.3]} 30. Bh6 {[%clk 0:00:32.7]} 30... Bh8 {[%clk
0:00:46.4]} 31. Bg5 {[%clk 0:00:30.6]} 31... Qb6 {[%clk 0:00:42]} 32. Be3 {[%clk
0:00:29.8]} 32... Qb7 {[%clk 0:00:33.4]} 33. Bg5 {[%clk 0:00:29.7]} 33... bxc4
{[%clk 0:00:22.8]} 34. bxc4 {[%clk 0:00:29.2]} 34... Qb6 {[%clk 0:00:22.5]} 35.
Be3 {[%clk 0:00:28.3]} 35... Qc7 {[%clk 0:00:20.3]} 36. b3 {[%clk 0:00:27.5]}
36... Rb8 {[%clk 0:00:20.2]} 37. Bg5 {[%clk 0:00:26.6]} 37... e6 {[%clk
0:00:16.3]} 38. dxe6 {[%clk 0:00:25.4]} 38... fxe6 {[%clk 0:00:17.2]} 39. Re3
{[%clk 0:00:20.2]} 39... Qc5 {[%clk 0:00:17.1]} 40. Nf3 {[%clk 0:00:17]} 40...
Bc6 {[%clk 0:00:17.8]} 41. Rce1 {[%clk 0:00:16.5]} 41... Bxf3 {[%clk 0:00:17.9]}
42. Rxf3 {[%clk 0:00:16.4]} 42... Be5 {[%clk 0:00:17.4]} 43. Bf4 {[%clk
0:00:15.3]} 43... Bxf4 {[%clk 0:00:16.9]} 44. Qxf4 {[%clk 0:00:14.6]} 44... Rf8
{[%clk 0:00:13.2]} 45. Qe4 {[%clk 0:00:14.8]} 45... Rxf3 {[%clk 0:00:13.2]} 46.
Qxf3 {[%clk 0:00:15.7]} 46... Rf8 {[%clk 0:00:12.2]} 47. Qe3 {[%clk 0:00:14.9]}
47... Qxe3 {[%clk 0:00:11.5]} 48. Rxe3 {[%clk 0:00:15.8]} 48... Kf7 {[%clk
0:00:10.9]} 49. f4 {[%clk 0:00:15]} 49... Ke7 {[%clk 0:00:11.3]} 50. g3 {[%clk
0:00:15.3]} 50... Rb8 {[%clk 0:00:11.5]} 51. Kg2 {[%clk 0:00:15.3]} 51... Kd7
{[%clk 0:00:12]} 52. h4 {[%clk 0:00:14.6]} 52... h5 {[%clk 0:00:11.6]} 53. Kf3
{[%clk 0:00:14.2]} 53... a5 {[%clk 0:00:12.3]} 54. g4 {[%clk 0:00:14.2]} 54...
Rb4 {[%clk 0:00:12.7]} 55. f5 {[%clk 0:00:12.3]} 55... exf5 {[%clk 0:00:12.2]}
56. gxh5 {[%clk 0:00:11.9]} 56... gxh5 {[%clk 0:00:12.3]} 57. Kf4 {[%clk
0:00:12.3]} 57... a4 {[%clk 0:00:12.8]} 58. bxa4 {[%clk 0:00:10.8]} 58... Rxc4+
{[%clk 0:00:13.4]} 59. Kxf5 {[%clk 0:00:11.2]} 59... Rxh4 {[%clk 0:00:14]} 60.
Kg5 {[%clk 0:00:11.5]} 60... Rxa4 {[%clk 0:00:12.3]} 61. Kxh5 {[%clk 0:00:11.1]}
61... Rf4 {[%clk 0:00:12.8]} 62. Kg5 {[%clk 0:00:11.1]} 62... Rf1 {[%clk
0:00:13.3]} 63. Kg4 {[%clk 0:00:10]} 63... d5 {[%clk 0:00:13.9]} 64. Rf3 {[%clk
0:00:10.6]} 64... Re1 {[%clk 0:00:12.5]} 65. Kf4 {[%clk 0:00:10.7]} 65... Kd6
{[%clk 0:00:12.8]} 66. Re3 {[%clk 0:00:11.3]} 66... Rf1+ {[%clk 0:00:12.6]} 67.
Rf3 {[%clk 0:00:09.9]} 67... Rxf3+ {[%clk 0:00:13]} 68. Kxf3 {[%clk 0:00:09.4]}
68... Kc5 {[%clk 0:00:13.9]} 69. Ke3 {[%clk 0:00:08.4]} 69... Kc4 {[%clk
0:00:14.8]} 70. Ke2 {[%clk 0:00:06.8]} 70... Kc3 {[%clk 0:00:15.1]} 71. Ke1
{[%clk 0:00:06.2]} 71... Kd3 {[%clk 0:00:14.5]} 72. Kd1 {[%clk 0:00:06.5]} 72...
d4 {[%clk 0:00:14.8]} 73. Ke1 {[%clk 0:00:06.6]} 73... Kc2 {[%clk 0:00:15.3]}
74. Ke2 {[%clk 0:00:07.5]} 74... d3+ {[%clk 0:00:15.8]} 0-1

[Event "Early-Titled-Tuesday-Blitz-October-24-2023"]
[Site "Chess.com"]
[Date "2023.10.24"]
[Round "1"]
[White "AlexPapasimakopoulos"]
[Black "Nick12772"]
[Result "1/2-1/2"]
[WhiteElo "2672"]
[BlackElo "2368"]
[TimeControl "180+1"]
[EndTime "8:08:48 PDT"]
[Termination "Game drawn by repetition"]

1. d4 {[%clk 0:02:59.2]} 1... Nf6 {[%clk 0:03:00.1]} 2. c4 {[%clk 0:02:58.4]}
2... g6 {[%clk 0:02:59.5]} 3. Nc3 {[%clk 0:02:57.7]} 3... d5 {[%clk 0:02:59.6]}
4. Nf3 {[%clk 0:02:55.9]} 4... Bg7 {[%clk 0:02:59.7]} 5. Qb3 {[%clk 0:02:53.6]}
5... dxc4 {[%clk 0:02:59.8]} 6. Qxc4 {[%clk 0:02:54.5]} 6... O-O {[%clk
0:03:00.3]} 7. e4 {[%clk 0:02:54.3]} 7... a6 {[%clk 0:03:00.6]} 8. Be2 {[%clk
0:02:54.1]} 8... b5 {[%clk 0:03:01.1]} 9. Qb3 {[%clk 0:02:54.7]} 9... c5 {[%clk
0:03:01.4]} 10. dxc5 {[%clk 0:02:54.5]} 10... Bb7 {[%clk 0:03:02]} 11. e5 {[%clk
0:02:54.2]} 11... Nfd7 {[%clk 0:03:02.4]} 12. Be3 {[%clk 0:02:52.2]} 12... Nxe5
{[%clk 0:03:02.3]} 13. Nxe5 {[%clk 0:02:51.8]} 13... Bxe5 {[%clk 0:03:03.2]} 14.
O-O {[%clk 0:02:51.1]} 14... Qc7 {[%clk 0:02:51.6]} 15. f4 {[%clk 0:02:37]}
15... Bg7 {[%clk 0:02:51.3]} 16. Nd5 {[%clk 0:02:32.1]} 16... Bxd5 {[%clk
0:02:50.8]} 17. Qxd5 {[%clk 0:02:33]} 17... Nc6 {[%clk 0:02:50.4]} 18. Bf3
{[%clk 0:02:28.8]} 18... Rac8 {[%clk 0:02:50]} 19. Rf2 {[%clk 0:02:11.5]} 19...
Rfd8 {[%clk 0:02:26.5]} 20. Qxc6 {[%clk 0:02:06.5]} 20... Qxc6 {[%clk
0:02:27.4]} 21. Bxc6 {[%clk 0:02:06.6]} 21... Rxc6 {[%clk 0:02:28.3]} 22. Re2
{[%clk 0:01:52.9]} 22... Bd4 {[%clk 0:02:24.2]} 23. Rc1 {[%clk 0:01:48.5]} 23...
Bxe3+ {[%clk 0:01:43.7]} 24. Rxe3 {[%clk 0:01:49.4]} 24... e6 {[%clk 0:01:44.3]}
25. Rc2 {[%clk 0:01:45.5]} 25... Rd5 {[%clk 0:01:36]} 26. Rec3 {[%clk
0:01:43.5]} 26... a5 {[%clk 0:01:30.8]} 27. g3 {[%clk 0:01:41.9]} 27... h5
{[%clk 0:01:29.5]} 28. a3 {[%clk 0:01:40.7]} 28... a4 {[%clk 0:01:29]} 29. Kf2
{[%clk 0:01:40.4]} 29... e5 {[%clk 0:01:23.5]} 30. fxe5 {[%clk 0:01:27.6]} 30...
Rxe5 {[%clk 0:01:24.4]} 31. Rc1 {[%clk 0:01:26.6]} 31... Kg7 {[%clk 0:01:22.2]}
32. R1c2 {[%clk 0:01:26.3]} 32... Kh6 {[%clk 0:01:15.9]} 33. Kf3 {[%clk
0:01:26.4]} 33... Rf6+ {[%clk 0:01:06.3]} 34. Kg2 {[%clk 0:01:25.9]} 34... Rc6
{[%clk 0:01:05.9]} 35. h3 {[%clk 0:01:26.1]} 35... Kg7 {[%clk 0:01:03.5]} 36.
Kf3 {[%clk 0:01:20.1]} 36... Rf6+ {[%clk 0:01:03.3]} 37. Kg2 {[%clk 0:01:18.7]}
37... Rc6 {[%clk 0:01:03.9]} 38. g4 {[%clk 0:01:18.4]} 38... hxg4 {[%clk
0:01:03.9]} 39. hxg4 {[%clk 0:01:19.3]} 39... Kh6 {[%clk 0:01:00.7]} 40. Kg3
{[%clk 0:01:08.2]} 40... Kg5 {[%clk 0:00:57.9]} 41. Kh3 {[%clk 0:01:06]} 41...
Re4 {[%clk 0:00:41.2]} 42. Rg3 {[%clk 0:01:05.1]} 42... Rc4 {[%clk 0:00:36.2]}
43. Rxc4 {[%clk 0:01:03]} 43... bxc4 {[%clk 0:00:37.1]} 44. Rf3 {[%clk
0:01:03.3]} 44... f5 {[%clk 0:00:34.7]} 45. gxf5 {[%clk 0:01:01.4]} 45... gxf5
{[%clk 0:00:35.6]} 46. Rg3+ {[%clk 0:00:58.7]} 46... Kf4 {[%clk 0:00:35.2]} 47.
Rg8 {[%clk 0:00:56]} 47... Rxc5 {[%clk 0:00:33.6]} 48. Ra8 {[%clk 0:00:47.8]}
48... Ke3 {[%clk 0:00:30.3]} 49. Rxa4 {[%clk 0:00:44.9]} 49... f4 {[%clk
0:00:30.9]} 50. Ra8 {[%clk 0:00:42.2]} 50... f3 {[%clk 0:00:27.1]} 51. Re8+
{[%clk 0:00:41.4]} 51... Kd2 {[%clk 0:00:21]} 52. Rd8+ {[%clk 0:00:39.7]} 52...
Kc2 {[%clk 0:00:21]} 53. Rb8 {[%clk 0:00:24.5]} 53... Rf5 {[%clk 0:00:17.1]} 54.
Kg4 {[%clk 0:00:24.9]} 54... f2 {[%clk 0:00:16.8]} 55. Kxf5 {[%clk 0:00:25.4]}
55... f1=Q+ {[%clk 0:00:17.2]} 56. Ke4 {[%clk 0:00:24.1]} 56... Qe1+ {[%clk
0:00:16.4]} 57. Kd5 {[%clk 0:00:23.7]} 57... Qd2+ {[%clk 0:00:15.5]} 58. Kxc4
{[%clk 0:00:23.2]} 58... Qd3+ {[%clk 0:00:15]} 59. Kc5 {[%clk 0:00:23.8]} 59...
Qg3 {[%clk 0:00:13.5]} 60. Rb5 {[%clk 0:00:22.5]} 60... Qe5+ {[%clk 0:00:12.5]}
61. Kb6 {[%clk 0:00:22.6]} 61... Qd6+ {[%clk 0:00:12.8]} 62. Kb7 {[%clk
0:00:22.8]} 62... Qd7+ {[%clk 0:00:13]} 63. Kb6 {[%clk 0:00:22.6]} 63... Qd8+
{[%clk 0:00:13.1]} 64. Kc6 {[%clk 0:00:22.4]} 64... Qc8+ {[%clk 0:00:12.7]} 65.
Kb6 {[%clk 0:00:22.8]} 65... Kb1 {[%clk 0:00:11.6]} 66. a4 {[%clk 0:00:19.6]}
66... Qb8+ {[%clk 0:00:11.7]} 67. Kc5 {[%clk 0:00:19.5]} 67... Qc7+ {[%clk
0:00:12]} 68. Kb4 {[%clk 0:00:19.7]} 68... Qf4+ {[%clk 0:00:11.4]} 69. Ka5
{[%clk 0:00:19.9]} 69... Qd2+ {[%clk 0:00:11.4]} 70. Ka6 {[%clk 0:00:19.9]}
70... Qc2 {[%clk 0:00:07.4]} 71. b3 {[%clk 0:00:17.6]} 71... Qc6+ {[%clk
0:00:06.4]} 72. Ka7 {[%clk 0:00:17.3]} 72... Qc7+ {[%clk 0:00:06.3]} 73. Ka6
{[%clk 0:00:17.1]} 73... Qc6+ {[%clk 0:00:06.7]} 74. Rb6 {[%clk 0:00:17.7]}
74... Qa8+ {[%clk 0:00:06]} 75. Kb5 {[%clk 0:00:18.3]} 75... Qd5+ {[%clk
0:00:06.7]} 76. Kb4 {[%clk 0:00:17.6]} 76... Qd4+ {[%clk 0:00:06.1]} 77. Ka5
{[%clk 0:00:17.7]} 77... Qc5+ {[%clk 0:00:06.8]} 78. Ka6 {[%clk 0:00:18.1]}
78... Qc8+ {[%clk 0:00:07]} 79. Rb7 {[%clk 0:00:18.4]} 79... Qc6+ {[%clk
0:00:07.2]} 80. Ka7 {[%clk 0:00:18.5]} 80... Qc5+ {[%clk 0:00:07.2]} 81. Rb6
{[%clk 0:00:19.1]} 81... Qc7+ {[%clk 0:00:07.3]} 82. Ka6 {[%clk 0:00:19.7]}
82... Qc8+ {[%clk 0:00:06.9]} 83. Ka5 {[%clk 0:00:20]} 83... Qc5+ {[%clk
0:00:07.1]} 84. Rb5 {[%clk 0:00:20.5]} 84... Qc7+ {[%clk 0:00:07.3]} 85. Ka6
{[%clk 0:00:20.4]} 85... Qc6+ {[%clk 0:00:07.4]} 1/2-1/2

[Event "Early-Titled-Tuesday-Blitz-October-24-2023"]
[Site "Chess.com"]
[Date "2023.10.24"]
[Round "1"]
[White "temiksmozg"]
[Black "NowInChess"]
[Result "1-0"]
[WhiteElo "2581"]
[BlackElo "2247"]
[TimeControl "180+1"]
[EndTime "8:08:50 PDT"]
[Termination "temiksmozg won by resignation"]

1. d4 {[%clk 0:03:00.9]} 1... Nf6 {[%clk 0:02:59.6]} 2. c4 {[%clk 0:02:58.4]}
2... c5 {[%clk 0:02:59.2]} 3. d5 {[%clk 0:02:56.3]} 3... b5 {[%clk 0:02:57.4]}
4. cxb5 {[%clk 0:02:57.2]} 4... a6 {[%clk 0:02:57.5]} 5. Nc3 {[%clk 0:02:57.4]}
5... g6 {[%clk 0:02:53.9]} 6. e4 {[%clk 0:02:54.5]} 6... d6 {[%clk 0:02:52.8]}
7. bxa6 {[%clk 0:02:53.1]} 7... Bg7 {[%clk 0:02:47]} 8. Nf3 {[%clk 0:02:48.7]}
8... O-O {[%clk 0:02:46.5]} 9. Qc2 {[%clk 0:02:44.5]} 9... Qa5 {[%clk
0:02:44.9]} 10. Bd2 {[%clk 0:02:43.9]} 10... Bxa6 {[%clk 0:02:40.6]} 11. Bxa6
{[%clk 0:02:41.7]} 11... Qxa6 {[%clk 0:02:40.1]} 12. Bg5 {[%clk 0:02:34.8]}
12... h6 {[%clk 0:02:37]} 13. Bf4 {[%clk 0:02:25.1]} 13... Nbd7 {[%clk
0:02:32.8]} 14. Qe2 {[%clk 0:02:23.6]} 14... Qxe2+ {[%clk 0:02:28.2]} 15. Kxe2
{[%clk 0:02:24.5]} 15... Ng4 {[%clk 0:02:25.7]} 16. h3 {[%clk 0:02:16.3]} 16...
Nge5 {[%clk 0:02:25.3]} 17. Nxe5 {[%clk 0:02:14.3]} 17... Nxe5 {[%clk
0:02:25.8]} 18. Bxe5 {[%clk 0:02:10.7]} 18... Bxe5 {[%clk 0:02:23.5]} 19. Kd3
{[%clk 0:02:11.1]} 19... Rfb8 {[%clk 0:02:21.4]} 20. Kc2 {[%clk 0:02:07.5]}
20... Rb4 {[%clk 0:02:14.6]} 21. f3 {[%clk 0:02:05.6]} 21... Rab8 {[%clk
0:02:12.2]} 22. Rab1 {[%clk 0:02:05.3]} 22... Ra8 {[%clk 0:02:02.7]} 23. a3
{[%clk 0:02:02.6]} 23... Rb7 {[%clk 0:01:49.1]} 24. Rhd1 {[%clk 0:01:46.7]}
24... h5 {[%clk 0:01:47.1]} 25. Rd2 {[%clk 0:01:45.2]} 25... h4 {[%clk
0:01:38.1]} 26. Nd1 {[%clk 0:01:44.1]} 26... Rab8 {[%clk 0:01:31.5]} 27. Rd3
{[%clk 0:00:57.9]} 27... Kg7 {[%clk 0:00:58.3]} 28. Nc3 {[%clk 0:00:33.3]} 28...
Rb3 {[%clk 0:00:39.6]} 29. Na4 {[%clk 0:00:25.8]} 29... R3b5 {[%clk 0:00:19.1]}
30. Rdd1 {[%clk 0:00:19.7]} 30... Rb3 {[%clk 0:00:17.5]} 31. Nc3 {[%clk
0:00:19.1]} 31... R3b6 {[%clk 0:00:10.7]} 32. Rf1 {[%clk 0:00:17.5]} 32... g5
{[%clk 0:00:09.6]} 33. Rfe1 {[%clk 0:00:17.1]} 33... Rb3 {[%clk 0:00:09.3]} 34.
Nd1 {[%clk 0:00:14]} 34... R3b6 {[%clk 0:00:06]} 35. Re3 {[%clk 0:00:13.9]}
35... Bf4 {[%clk 0:00:05.1]} 36. Rd3 {[%clk 0:00:13.3]} 36... Be5 {[%clk
0:00:04.7]} 37. Re3 {[%clk 0:00:06.9]} 37... Bf4 {[%clk 0:00:04.3]} 38. Rc3
{[%clk 0:00:07.4]} 38... Be5 {[%clk 0:00:05.1]} 39. Rc4 {[%clk 0:00:08]} 39...
Kf6 {[%clk 0:00:04.2]} 40. b3 {[%clk 0:00:06.1]} 40... e6 {[%clk 0:00:02.7]} 41.
dxe6 {[%clk 0:00:05.8]} 41... fxe6 {[%clk 0:00:03.6]} 42. Ne3 {[%clk 0:00:06.4]}
42... Bd4 {[%clk 0:00:03.8]} 43. Ng4+ {[%clk 0:00:06.8]} 43... Kf7 {[%clk
0:00:04]} 44. b4 {[%clk 0:00:04]} 44... cxb4 {[%clk 0:00:03.6]} 45. Rxd4 {[%clk
0:00:03.5]} 45... bxa3 {[%clk 0:00:02.9]} 46. Rxb6 {[%clk 0:00:04]} 46... Rxb6
{[%clk 0:00:03.1]} 47. Ra4 {[%clk 0:00:04.5]} 47... Rb2+ {[%clk 0:00:02.6]} 48.
Kd3 {[%clk 0:00:05]} 48... Rxg2 {[%clk 0:00:03.3]} 49. Rxa3 {[%clk 0:00:05.4]}
49... Rg3 {[%clk 0:00:03.8]} 50. Ra7+ {[%clk 0:00:05.9]} 50... Kg6 {[%clk
0:00:03.2]} 51. Ke3 {[%clk 0:00:06.8]} 51... Rxh3 {[%clk 0:00:03.2]} 52. Re7
{[%clk 0:00:07.5]} 52... Rg3 {[%clk 0:00:01.9]} 53. Rxe6+ {[%clk 0:00:07.8]}
53... Kf7 {[%clk 0:00:02.8]} 54. Rxd6 {[%clk 0:00:07.3]} 54... h3 {[%clk
0:00:03.4]} 55. Rh6 {[%clk 0:00:07.9]} 55... Rg1 {[%clk 0:00:02.5]} 56. Rxh3
{[%clk 0:00:07.8]} 56... Re1+ {[%clk 0:00:03]} 57. Kf2 {[%clk 0:00:08.4]} 57...
Rb1 {[%clk 0:00:02.7]} 58. Rh6 {[%clk 0:00:09.3]} 58... Rb2+ {[%clk 0:00:03.1]}
59. Kg3 {[%clk 0:00:10]} 59... Kg7 {[%clk 0:00:03.7]} 60. Rd6 {[%clk 0:00:08.9]}
60... Rb1 {[%clk 0:00:04.4]} 61. e5 {[%clk 0:00:09.7]} 61... Rg1+ {[%clk
0:00:04.1]} 62. Kf2 {[%clk 0:00:10.1]} 62... Rc1 {[%clk 0:00:04.3]} 63. e6
{[%clk 0:00:09.9]} 63... Rc2+ {[%clk 0:00:05.2]} 64. Ke3 {[%clk 0:00:09.6]}
64... Rc8 {[%clk 0:00:05.3]} 65. Ke4 {[%clk 0:00:09.5]} 65... Re8 {[%clk
0:00:06.2]} 66. Kf5 {[%clk 0:00:09.8]} 66... Rf8+ {[%clk 0:00:05.7]} 67. Ke4
{[%clk 0:00:09.5]} 67... Rf4+ {[%clk 0:00:05.3]} 68. Ke3 {[%clk 0:00:09.9]}
68... Rf8 {[%clk 0:00:05.6]} 69. Rd5 {[%clk 0:00:10.2]} 69... Kg6 {[%clk
0:00:05]} 70. Re5 {[%clk 0:00:10.3]} 70... Re8 {[%clk 0:00:05.2]} 71. e7 {[%clk
0:00:10.6]} 71... Kf7 {[%clk 0:00:05.3]} 72. Ke4 {[%clk 0:00:11.2]} 72... Rxe7
{[%clk 0:00:05.5]} 73. Rxe7+ {[%clk 0:00:12.1]} 73... Kxe7 {[%clk 0:00:06]} 74.
Kf5 {[%clk 0:00:12.8]} 74... Kf7 {[%clk 0:00:06.5]} 75. Kxg5 {[%clk 0:00:13.7]}
75... Kg7 {[%clk 0:00:07.4]} 76. f4 {[%clk 0:00:14.6]} 76... Kf7 {[%clk
0:00:07.9]} 77. f5 {[%clk 0:00:15.5]} 77... Kg7 {[%clk 0:00:08.8]} 78. f6+
{[%clk 0:00:16.4]} 78... Kf7 {[%clk 0:00:09.6]} 79. Kf5 {[%clk 0:00:16.5]} 79...
Kf8 {[%clk 0:00:10.5]} 80. Kg6 {[%clk 0:00:16.8]} 80... Kg8 {[%clk 0:00:11.4]}
81. f7+ {[%clk 0:00:17.3]} 81... Kf8 {[%clk 0:00:11.6]} 82. Nf2 {[%clk
0:00:17.9]} 82... Ke7 {[%clk 0:00:11.4]} 83. Kg7 {[%clk 0:00:18.8]} 83... Ke6
{[%clk 0:00:11.9]} 84. f8=Q {[%clk 0:00:19.7]} 84... Ke5 {[%clk 0:00:12.8]} 85.
Qf3 {[%clk 0:00:19.8]} 85... Kd4 {[%clk 0:00:13.1]} 86. Kf6 {[%clk 0:00:20.5]}
1-0

[Event "Early-Titled-Tuesday-Blitz-October-24-2023"]
[Site "Chess.com"]
[Date "2023.10.24"]
[Round "1"]
[White "semchik73"]
[Black "mind1mover"]
[Result "0-1"]
[WhiteElo "2449"]
[BlackElo "2815"]
[TimeControl "180+1"]
[EndTime "8:08:51 PDT"]
[Termination "mind1mover won by resignation"]

1. Nf3 {[%clk 0:03:00.3]} 1... Nc6 {[%clk 0:03:00.1]} 2. d4 {[%clk 0:03:00.1]}
2... Nf6 {[%clk 0:03:00]} 3. d5 {[%clk 0:02:57.3]} 3... Nb8 {[%clk 0:03:00.2]}
4. c4 {[%clk 0:02:57.4]} 4... e6 {[%clk 0:03:00.4]} 5. Nc3 {[%clk 0:02:57.8]}
5... Bb4 {[%clk 0:03:00.3]} 6. e3 {[%clk 0:02:55.4]} 6... Bxc3+ {[%clk
0:02:58.9]} 7. bxc3 {[%clk 0:02:55.2]} 7... d6 {[%clk 0:02:59.8]} 8. Bd3 {[%clk
0:02:52.8]} 8... O-O {[%clk 0:02:55.4]} 9. O-O {[%clk 0:02:49.1]} 9... Na6
{[%clk 0:02:49.8]} 10. Ba3 {[%clk 0:02:40.2]} 10... b6 {[%clk 0:02:43.9]} 11. e4
{[%clk 0:02:36.8]} 11... e5 {[%clk 0:02:42.4]} 12. Nd2 {[%clk 0:02:32.6]} 12...
Nc5 {[%clk 0:02:35.2]} 13. Bxc5 {[%clk 0:02:31]} 13... dxc5 {[%clk 0:02:35.7]}
14. f4 {[%clk 0:02:29.1]} 14... Nd7 {[%clk 0:02:31.2]} 15. f5 {[%clk 0:02:24.7]}
15... Qg5 {[%clk 0:02:30.6]} 16. Nf3 {[%clk 0:02:23.4]} 16... Qg4 {[%clk
0:02:13.4]} 17. f6 {[%clk 0:02:15.4]} 17... Nxf6 {[%clk 0:02:10.2]} 18. Nxe5
{[%clk 0:02:15]} 18... Qxd1 {[%clk 0:02:08]} 19. Raxd1 {[%clk 0:02:14.7]} 19...
Re8 {[%clk 0:02:08.5]} 20. Nc6 {[%clk 0:02:10.6]} 20... Ng4 {[%clk 0:01:50]} 21.
Rde1 {[%clk 0:02:06.5]} 21... Bd7 {[%clk 0:01:46.7]} 22. h3 {[%clk 0:02:02]}
22... Bxc6 {[%clk 0:01:33.4]} 23. hxg4 {[%clk 0:02:00.9]} 23... Bd7 {[%clk
0:01:33.9]} 24. g5 {[%clk 0:01:58.3]} 24... Re5 {[%clk 0:01:33.2]} 25. Rf4
{[%clk 0:01:52.9]} 25... Rae8 {[%clk 0:01:27.9]} 26. Ref1 {[%clk 0:01:52.3]}
26... R8e7 {[%clk 0:01:28.1]} 27. Rh4 {[%clk 0:01:37.1]} 27... Rxg5 {[%clk
0:01:09.8]} 28. Kf2 {[%clk 0:01:33.2]} 28... h6 {[%clk 0:01:02.2]} 29. Rf4
{[%clk 0:01:31]} 29... Be8 {[%clk 0:01:01.5]} 30. g3 {[%clk 0:01:28.5]} 30...
Rh5 {[%clk 0:00:59.9]} 31. Kg2 {[%clk 0:01:27.7]} 31... f6 {[%clk 0:00:59.5]}
32. Be2 {[%clk 0:01:19.7]} 32... Rhe5 {[%clk 0:00:59.7]} 33. Bd3 {[%clk
0:01:19.7]} 33... Bg6 {[%clk 0:00:59]} 34. Kf3 {[%clk 0:01:16.3]} 34... Bh7
{[%clk 0:00:56.6]} 35. a4 {[%clk 0:01:13.4]} 35... a5 {[%clk 0:00:56.3]} 36. Rh1
{[%clk 0:01:09.5]} 36... Kf7 {[%clk 0:00:52.3]} 37. Ke3 {[%clk 0:00:55.7]} 37...
Bg6 {[%clk 0:00:50.5]} 38. Kf3 {[%clk 0:00:54.7]} 38... Kg8 {[%clk 0:00:50.1]}
39. Rg1 {[%clk 0:00:48.9]} 39... Be8 {[%clk 0:00:50.5]} 40. Rh1 {[%clk
0:00:48.6]} 40... Bxa4 {[%clk 0:00:49.9]} 41. Rg1 {[%clk 0:00:42]} 41... Bd7
{[%clk 0:00:49.7]} 42. g4 {[%clk 0:00:42.3]} 42... g5 {[%clk 0:00:44.5]} 43.
Rxf6 {[%clk 0:00:42]} 43... Kg7 {[%clk 0:00:44.8]} 44. Rf5 {[%clk 0:00:39.9]}
44... Bxf5 {[%clk 0:00:44.5]} 45. gxf5 {[%clk 0:00:39.8]} 45... Re8 {[%clk
0:00:39.4]} 46. Rh1 {[%clk 0:00:39.3]} 46... a4 {[%clk 0:00:37.9]} 47. Ra1
{[%clk 0:00:38.9]} 47... Ra8 {[%clk 0:00:37]} 48. Kg4 {[%clk 0:00:39.4]} 48...
a3 {[%clk 0:00:33.9]} 49. Ra2 {[%clk 0:00:39.8]} 49... Kf6 {[%clk 0:00:33.5]}
50. Kh5 {[%clk 0:00:38.8]} 50... Ree8 {[%clk 0:00:29.3]} 51. Kg4 {[%clk
0:00:35]} 51... h5+ {[%clk 0:00:26.9]} 52. Kxh5 {[%clk 0:00:34.3]} 52... Rh8+
{[%clk 0:00:27.1]} 53. Kg4 {[%clk 0:00:35.1]} 53... Rh4+ {[%clk 0:00:27.2]} 54.
Kg3 {[%clk 0:00:35.3]} 54... Rah8 {[%clk 0:00:23.7]} 55. Bf1 {[%clk 0:00:34.1]}
55... Ra8 {[%clk 0:00:13.9]} 56. Bg2 {[%clk 0:00:32.4]} 56... Ke5 {[%clk
0:00:14.4]} 57. Bf3 {[%clk 0:00:28.2]} 57... Rf4 {[%clk 0:00:14.1]} 58. Bg2
{[%clk 0:00:27.8]} 58... Ra4 {[%clk 0:00:14.6]} 59. Bf3 {[%clk 0:00:26.8]} 59...
Rh4 {[%clk 0:00:14.7]} 60. Bg2 {[%clk 0:00:26.8]} 60... Rh8 {[%clk 0:00:11.7]}
61. Bf3 {[%clk 0:00:27]} 61... Rha8 {[%clk 0:00:12.1]} 62. Be2 {[%clk
0:00:26.1]} 62... Kxe4 {[%clk 0:00:11.8]} 63. f6 {[%clk 0:00:26.4]} 63... Ke5
{[%clk 0:00:08.6]} 64. f7 {[%clk 0:00:25.5]} 64... Kf6 {[%clk 0:00:06.7]} 65.
Bh5 {[%clk 0:00:25.4]} 65... Kg7 {[%clk 0:00:07.3]} 66. Kg4 {[%clk 0:00:24]}
66... Rxc4+ {[%clk 0:00:07.6]} 67. Kxg5 {[%clk 0:00:24.4]} 67... Rxc3 {[%clk
0:00:07.8]} 68. Kf5 {[%clk 0:00:21.9]} 68... Rg3 {[%clk 0:00:03.5]} 69. Ke6
{[%clk 0:00:18.3]} 69... Rg5 {[%clk 0:00:02.4]} 70. Bf3 {[%clk 0:00:18.1]} 70...
Kf8 {[%clk 0:00:01.5]} 71. Kf6 {[%clk 0:00:16.1]} 71... Rg7 {[%clk 0:00:01.6]}
72. Bh5 {[%clk 0:00:15]} 72... Rh7 {[%clk 0:00:02.3]} 73. Bg6 {[%clk 0:00:14.8]}
73... Rg7 {[%clk 0:00:03]} 74. Re2 {[%clk 0:00:14.1]} 74... Rxg6+ {[%clk
0:00:02.4]} 75. Kxg6 {[%clk 0:00:14]} 75... a2 {[%clk 0:00:03]} 76. Rh2 {[%clk
0:00:12.4]} 76... a1=Q {[%clk 0:00:03.1]} 0-1